fUSD/lending_fUSD_20251101
["ID","MTS","AMOUNT","RATE_DAILY","PERIOD"]
[392843295,1762037440232,-500.0,0.00014973,2]
[392843296,1762037440241,-500.0,0.00014973,2]
[392843297,1762037440250,-500.0,0.00014973,2]
[392843298,1762037440260,-500.0,0.00014973,2]
[392843299,1762037440269,-500.0,0.00014973,2]
[392843300,1762037440278,-500.0,0.00014973,2]
[392843301,1762037440288,-480.72814296,0.00014973,2]
[392843302,1762037440297,-500.0,0.00014973,2]
[392843303,1762037440306,-504.58952718,0.00014973,2]
[392843304,1762037440315,-500.0,0.00014973,2]
[392843305,1762037440324,-500.0,0.00014973,2]
[392843306,1762037440333,-151.0,0.00014973,2]
[392843307,1762037440342,-2049.427,0.00014973,2]
[392843308,1762037440351,-151.0,0.00014973,2]
[392843309,1762037440362,-151.0,0.00014973,2]
[392843310,1762037440371,-151.0,0.00014973,2]
[392843311,1762037440380,-151.0,0.00014973,2]
[392843312,1762037440390,-151.0,0.00014973,2]
[392843313,1762037440399,-204.173674,0.00014973,2]
[392843314,1762037440408,-151.0,0.00014973,2]
[392843315,1762037440418,-151.0,0.00014973,2]
[392843316,1762037440428,-151.0,0.00014973,2]
[392843318,1762037440437,-214.124156,0.00014973,2]
[392843319,1762037440446,-151.0,0.00014973,2]
[392843320,1762037440456,-221.851447,0.00014973,2]
[392843321,1762037440466,-151.0,0.00014973,2]
[392843322,1762037440476,-151.0,0.00014973,2]
[392843323,1762037440485,-151.0,0.00014973,2]
[392843324,1762037440494,-205.324062,0.00014973,2]
[392843325,1762037440503,-151.0,0.00014973,2]
[392843326,1762037440512,-151.0,0.00014973,2]
[392843327,1762037440521,-151.0,0.00014973,2]
[392843328,1762037440530,-151.0,0.00014973,2]
[392843329,1762037440539,-151.0,0.00014973,2]
[392843330,1762037440548,-151.0,0.00014973,2]
[392843331,1762037440557,-151.0,0.00014973,2]
[392843332,1762037440566,-151.0,0.00014973,2]
[392843333,1762037440575,-151.0,0.00014973,2]
[392843334,1762037440584,-151.0,0.00014973,2]
[392843335,1762037440592,-151.0,0.00014973,2]
[392843336,1762037440601,-151.0,0.00014973,2]
[392843337,1762037440609,-151.0,0.00014973,2]
[392843338,1762037440618,-151.0,0.00014973,2]
[392843339,1762037440627,-151.0,0.00014973,2]
[392843340,1762037440635,-151.0,0.00014973,2]
[392843341,1762037440644,-151.0,0.00014973,2]
[392843342,1762037440653,-151.0,0.00014973,2]
[392843343,1762037440662,-151.0,0.00014973,2]
[392843344,1762037440670,-151.0,0.00014973,2]
[392843345,1762037440679,-151.0,0.00014973,2]
[392843346,1762037440688,-151.0,0.00014973,2]
[392843347,1762037440696,-151.0,0.00014973,2]
[392843348,1762037440705,-151.0,0.00014973,2]
[392843349,1762037440715,-151.0,0.00014973,2]
[392843350,1762037440723,-151.0,0.00014973,2]
[392843351,1762037440732,-151.0,0.00014973,2]
[392843352,1762037440741,-151.0,0.00014973,2]
[392843353,1762037440750,-151.0,0.00014973,2]
[392843354,1762037440758,-300.392269,0.00014973,2]
[392843355,1762037440767,-151.0,0.00014973,2]
[392843356,1762037440776,-151.0,0.00014973,2]
[392843357,1762037440785,-151.0,0.00014973,2]
[392843358,1762037440793,-151.0,0.00014973,2]
[392843359,1762037440802,-151.0,0.00014973,2]
[392843360,1762037440811,-151.0,0.00014973,2]
[392843361,1762037440820,-160.180444,0.00014973,2]
[392843362,1762037440829,-151.0,0.00014973,2]
[392843363,1762037440838,-151.0,0.00014973,2]
[392843364,1762037440847,-151.0,0.00014973,2]
[392843365,1762037440856,-155.0,0.00014978,2]
[392843366,1762037440865,-155.0,0.00014979,2]
[392843367,1762037440874,-634.25,0.00014979,2]
[392843368,1762037440884,-634.25,0.00014979,2]
[392843369,1762037440893,-634.25,0.00014979,2]
[392843370,1762037440902,-634.25,0.00014979,2]
[392843371,1762037440912,-634.25,0.00014979,2]
[392843372,1762037440921,-634.25,0.00014979,2]
[392843373,1762037440933,-634.25,0.00014979,2]
[392843374,1762037440944,-634.25,0.00014979,2]
[392843375,1762037440953,-634.25,0.00014979,2]
[392843376,1762037440962,-634.25,0.00014979,2]
[392843377,1762037440971,-450.18242113,0.00014979,2]
[392843378,1762037440980,-500.0,0.00014979,2]
[392843379,1762037440989,-500.0,0.00014979,2]
[392843380,1762037440998,-500.0,0.00014979,2]
[392843381,1762037441007,-500.0,0.00014979,2]
[392843382,1762037441016,-500.0,0.00014979,2]
[392843383,1762037441024,-500.0,0.00014979,2]
[392843384,1762037441033,-500.0,0.00014979,2]
[392843385,1762037441042,-500.0,0.00014979,2]
[392843386,1762037441052,-439.58238853,0.00014979,2]
[392843387,1762037441061,-629.29720277,0.00014979,2]
[392843388,1762037441073,-177.05177756,0.00014979,2]
[392843389,1762037441082,-2070.0,0.0001498,2]
[392843390,1762037441091,-88867.0522513,0.0001498,2]
[392843648,1762037445610,-150.0,0.00014963,2]
[392843649,1762037445619,-132.52742922,0.00014973,2]
[392843650,1762037480986,168.0,0.00014592,2]
[392843651,1762037531643,892.41541494,0.00014584,2]
[392843653,1762037697674,3345.99943594,0.00014555,2]
[392843654,1762037697699,10000.01,0.00014555,2]
[392843655,1762037697722,3216.40760382,0.00014555,2]
[392843657,1762037889330,538.72,0.00013974,2]
[392843658,1762037889755,165.39,0.00013974,2]
[392843659,1762038143605,153.973883,0.00015,5]
[392843660,1762038144092,153.973883,0.00015,5]
[392843661,1762038144178,153.973883,0.00015,5]
[392843662,1762038144474,153.973883,0.00015,7]
[392843663,1762038144783,153.973883,0.00015,7]
[392843664,1762038150269,150.0,0.00013983,2]
[392843665,1762038182461,153.066411,0.00015,5]
[392843666,1762038182760,153.066411,0.00015,5]
[392843667,1762038183052,153.066411,0.00015,7]
[392843668,1762038241449,500.0,0.00013974,2]
[392843669,1762038308873,150.0,0.00013488,2]
[392843670,1762038313624,150.0,0.00013488,2]
[392843671,1762038325800,5129.49239618,0.000147,2]
[392843672,1762038325824,5642.50760382,0.000147,2]
[392843673,1762038388403,5516.0,0.000147,3]
[392843674,1762038403047,-1907.0,0.000151,5]
[392843675,1762038410136,-195.0,0.000151,5]
[392843676,1762038426022,200.0,0.00013952,2]
[392843677,1762038450276,3414.0,0.000149,5]
[392843693,1762038631879,-168.0,0.00014808,2]
[392843694,1762038631890,-92.222502,0.00014809,2]
[392843695,1762038632139,-102.777498,0.00014809,2]
[392843696,1762038632149,-250.0,0.00014809,2]
[392843697,1762038632158,-862.0669,0.0001483,2]
[392843698,1762038632167,-300.0,0.00014879,2]
[392843699,1762038632176,-1200.0,0.00014879,2]
[392843700,1762038632185,-932.91120264,0.0001488,2]
[392843701,1762038632194,-5000.0,0.0001488,2]
[392843702,1762038632203,-2102.0194,0.0001488,2]
[392843703,1762038632213,-3973.796603,0.0001488,2]
[392843704,1762038632222,-3973.79660296,0.00014882,2]
[392843705,1762038632231,-3973.79660296,0.00014884,2]
[392843706,1762038632244,-3814.02926174,0.00014887,2]
[392843708,1762038632281,-159.76734122,0.00014887,2]
[392843710,1762038632292,-3973.79660296,0.00014889,2]
[392843711,1762038632301,-3973.79660296,0.00014891,2]
[392843713,1762038632311,-3973.79660296,0.00014893,2]
[392843715,1762038632320,-3973.79660296,0.00014896,2]
[392843717,1762038632329,-151.0,0.00014897,2]
[392843719,1762038632338,-3973.79660296,0.00014898,2]
[392843720,1762038632347,-388.271416,0.000149,2]
[392843722,1762038632357,-3973.79660296,0.000149,2]
[392843723,1762038632367,-1187.0,0.00014954,2]
[392843725,1762038632376,-905.0,0.00014954,2]
[392843726,1762038632385,-559.0,0.00014954,2]
[392843728,1762038632394,-2140.0,0.00014954,2]
[392843730,1762038632402,-6652.0,0.00014954,2]
[392843731,1762038632411,-599.59591514,0.00014955,2]
[392843732,1762038632420,-496.47127164,0.00014955,2]
[392843733,1762038632429,-150.0,0.00014963,2]
[392843734,1762038632438,-150.0,0.00014963,2]
[392843735,1762038632447,-150.0,0.00014964,2]
[392843736,1762038632455,-150.0,0.00014964,2]
[392843737,1762038632464,-150.0,0.00014964,2]
[392843738,1762038632473,-150.0,0.00014964,2]
[392843739,1762038632482,-150.0,0.00014964,2]
[392843741,1762038632491,-150.0,0.00014964,2]
[392843743,1762038632501,-3420.0,0.00014964,2]
[392843745,1762038632510,-607.0,0.00014964,2]
[392843747,1762038632520,-820.0,0.00014964,2]
[392843749,1762038632530,-573.0,0.00014964,2]
[392843750,1762038632539,-1314.0,0.00014964,2]
[392843751,1762038632550,-1594.0,0.00014964,2]
[392843752,1762038632560,-1272.0,0.00014964,2]
[392843753,1762038632570,-819.0,0.00014964,2]
[392843754,1762038632579,-862.06691,0.0001497,2]
[392843755,1762038632589,-505.25069776,0.00014973,2]
[392843756,1762038632598,-500.0,0.00014973,2]
[392843757,1762038632607,-269.08696182,0.00014973,2]
[392843758,1762038632616,-500.0,0.00014973,2]
[392843759,1762038632625,-500.0,0.00014973,2]
[392843760,1762038632634,-500.0,0.00014973,2]
[392843761,1762038632643,-500.0,0.00014973,2]
[392843762,1762038632655,-500.0,0.00014973,2]
[392843763,1762038632665,-2262.393,0.00014973,2]
[392843764,1762038632676,-500.0,0.00014979,2]
[392843765,1762038632686,-500.0,0.00014979,2]
[392843766,1762038632696,-500.0,0.00014979,2]
[392843767,1762038632706,-500.0,0.00014979,2]
[392843768,1762038632715,-150.0,0.00014979,2]
[392843769,1762038632724,-200.0,0.00014979,2]
[392843770,1762038632736,-500.0,0.00014979,2]
[392843771,1762038632746,-500.0,0.00014979,2]
[392843772,1762038632754,-155.0,0.00014979,2]
[392843773,1762038632764,-500.0,0.00014979,2]
[392843774,1762038632773,-500.0,0.00014979,2]
[392843775,1762038632782,-417.09066531,0.00014979,2]
[392843776,1762038632791,-500.0,0.00014979,2]
[392843777,1762038632800,-500.0,0.00014979,2]
[392843778,1762038632809,-500.0,0.00014979,2]
[392843779,1762038632818,-500.0,0.00014979,2]
[392843780,1762038632826,-500.0,0.00014979,2]
[392843781,1762038632836,-500.0,0.00014979,2]
[392843782,1762038632845,-500.0,0.00014979,2]
[392843783,1762038632854,-500.0,0.00014979,2]
[392843784,1762038632863,-500.0,0.00014979,2]
[392843785,1762038632872,-500.0,0.00014979,2]
[392843786,1762038632881,-500.0,0.00014979,2]
[392843787,1762038632890,-500.0,0.00014979,2]
[392843788,1762038632899,-203.51250435,0.00014979,2]
[392843789,1762038632909,-500.0,0.00014979,2]
[392843790,1762038632919,-2006.0,0.0001498,2]
[392843791,1762038632929,-22464.43143095,0.0001498,2]
[392843794,1762038637760,-0.01947216,0.00014954,2]
[392843795,1762038637771,-3503.64252784,0.00014954,2]
[392843796,1762038637781,-7794.35321836,0.0001498,2]
[392843797,1762038637885,-15347.17500647,0.0001498,2]
[392843799,1762038639848,-150.0,0.00014979,2]
[392843800,1762038639858,-2234.92509395,0.0001498,2]
[392843830,1762038642886,-372.55782554,0.0001498,2]
[392843832,1762038642976,-256.26274083,0.0001498,2]
[392843833,1762038642989,-6833.4278391,0.0001498,2]
[392843850,1762038645699,-7966.00447638,0.0001498,2]
[392843852,1762038645862,-41670.94859257,0.0001498,2]
[392843853,1762038645876,-12591.55512295,0.0001498,2]
[392843854,1762038645889,-46534.42884684,0.0001498,2]
[392843855,1762038645903,-26198.06134364,0.0001498,2]
[392843863,1762038786838,4157.50239618,0.00014106,2]
[392843864,1762038786868,2756.60760382,0.00014106,2]
[392843865,1762038799416,166.68,0.00014529,2]
[392843866,1762038901173,1200.0,0.00014799,2]
[392843868,1762038986827,500.0,0.00031232,120]
[392843869,1762038987392,500.0,0.00031232,120]
[392843870,1762038987467,626.08232765,0.00031232,120]
[392843871,1762039066368,500.0,0.00031232,120]
[392843872,1762039066552,500.0,0.00031506,120]
[392843874,1762039201275,1200.0,0.00014799,2]
[392843876,1762039501228,1200.0,0.00014799,2]
[392843877,1762039509075,150.0,0.00013488,2]
[392843889,1762039711260,500.0,0.000315,120]
[392843896,1762039752687,500.0,0.000315,120]
[392843900,1762039759559,2599.0,0.000147,2]
[392843902,1762039770731,250.0,0.0001405,2]
[392843903,1762039772129,500.0,0.000315,120]
[392843904,1762039791410,500.0,0.000315,120]
[392843905,1762039796982,999.0,0.0001405,3]
[392843906,1762039801552,477.72239618,0.00014799,2]
[392843907,1762039801576,722.27760382,0.00014799,2]
[392843908,1762039805046,500.0,0.000315,120]
[392843910,1762039819062,500.0,0.000315,120]
[392843917,1762039832030,-1122.51933016,0.000148,2]
[392843918,1762039832042,-6929.04568465,0.000148,2]
[392843919,1762039832054,-1422.15264951,0.000148,2]
[392843920,1762039832063,-10000.01,0.000148,2]
[392843921,1762039832079,-574.71127,0.0001483,2]
[392843922,1762039832091,-182.0,0.00014879,2]
[392843923,1762039832101,-150.0,0.00014879,2]
[392843924,1762039832112,-11771.6846,0.0001488,2]
[392843925,1762039832123,-799.6381737,0.0001488,2]
[392843926,1762039832134,-5000.0,0.0001488,2]
[392843927,1762039832144,-258.84761066,0.000149,2]
[392843928,1762039832154,-574.71127,0.0001497,2]
[392843929,1762039832163,-239.84119403,0.0001497,2]
[392843930,1762039832173,-573.0,0.00014972,2]
[392843931,1762039832182,-6652.0,0.00014972,2]
[392843932,1762039832192,-2140.0,0.00014972,2]
[392843933,1762039832203,-500.0,0.00014973,2]
[392843934,1762039832214,-153.47403075,0.00014973,2]
[392843935,1762039832223,-500.0,0.00014973,2]
[392843936,1762039832233,-500.0,0.00014973,2]
[392843937,1762039832242,-2247.752,0.00014973,2]
[392843938,1762039832251,-189.27916715,0.00014978,2]
[392843939,1762039832261,-500.0,0.00014979,2]
[392843940,1762039832270,-500.0,0.00014979,2]
[392843941,1762039832279,-500.0,0.00014979,2]
[392843942,1762039832288,-500.0,0.00014979,2]
[392843943,1762039832297,-500.0,0.00014979,2]
[392843945,1762039832308,-500.0,0.00014979,2]
[392843947,1762039832317,-500.0,0.00014979,2]
[392843949,1762039832327,-94202.05147644,0.00014979,2]
[392843951,1762039832342,-2704.88315931,0.00014979,2]
[392843952,1762039832354,-692.99958087,0.00014979,2]
[392843953,1762039832365,-31258.79430078,0.00014979,2]
[392843954,1762039832386,-323.81607191,0.00014979,2]
[392843959,1762039833783,500.0,0.000315,120]
[392843963,1762039837903,-820.0,0.00014972,2]
[392843964,1762039837913,-1270.0,0.00014979,2]
[392843965,1762039837926,-1783.49126766,0.00014979,2]
[392843966,1762039837937,-2875.5170958,0.00014979,2]
[392843967,1762039838015,-1665.8,0.00014979,2]
[392843968,1762039838172,-5511.96694177,0.00014979,2]
[392843969,1762039838184,-281.55,0.00014979,2]
[392843970,1762039838195,-11209.81542172,0.00014979,2]
[392843972,1762039840044,-908.90827331,0.00014979,2]
[392843973,1762039840354,-1397.8791,0.00014979,2]
[392843974,1762039840367,-1756.0,0.00014979,2]
[392843990,1762039843059,-333.44283979,0.00014979,2]
[392843991,1762039843071,-2960.74775424,0.00014979,2]
[392843992,1762039843080,-500.0,0.00014979,2]
[392843993,1762039843089,-492.79690975,0.00014979,2]
[392843994,1762039843218,-7.20309025,0.00014979,2]
[392843995,1762039843227,-500.0,0.00014979,2]
[392843996,1762039843237,-500.0,0.00014979,2]
[392843997,1762039843246,-500.0,0.00014979,2]
[392843998,1762039843255,-500.0,0.00014979,2]
[392843999,1762039843264,-500.0,0.00014979,2]
[392844000,1762039843273,-379.5991798,0.00014979,2]
[392844001,1762039843283,-1609.0,0.0001498,2]
[392844002,1762039843292,-1051.19772995,0.0001498,2]
[392844003,1762039843378,-540.17391,0.0001498,2]
[392844004,1762039843398,-469.06607036,0.0001498,2]
[392844160,1762039849291,-808.13842488,0.00014972,2]
[392844161,1762039864298,500.0,0.000315,120]
[392844162,1762039864346,158.28,0.00014032,2]
[392844169,1762039911123,218.07,0.000315,120]
[392844170,1762039918414,411.45127992,0.00031232,120]
[392844171,1762039920570,496.01994679,0.00031232,120]
[392844172,1762039951419,200.0,0.00013991,2]
[392844173,1762039961582,427.07601867,0.00031232,120]
[392844174,1762039971087,400.0,0.00031232,120]
[392844175,1762040069832,424.00649455,0.00031232,120]
[392844176,1762040070554,290.0,0.00031,120]
[392844177,1762040073536,406.6190466,0.00031232,120]
[392844179,1762040078768,850.0,0.00013699,2]
[392844185,1762040101396,1200.0,0.00014799,2]
[392844187,1762040122000,400.0,0.00031232,120]
[392844188,1762040124720,411.39025281,0.00031232,120]
[392844189,1762040126850,267.16384226,0.00031232,120]
[392844200,1762040332736,1000.0,0.00013949,2]
[392844201,1762040401157,1200.0,0.00014799,2]
[392844205,1762040701135,1200.0,0.00014799,2]
[392844206,1762040705084,165.39,0.00013937,2]
[392844207,1762040803205,150.0,0.00013923,2]
[392844208,1762040829365,250.0,0.00014791,2]
[392844209,1762040829958,250.0,0.00014791,2]
[392844210,1762040830568,250.0,0.00014791,2]
[392844211,1762040831171,250.0,0.00014791,2]
[392844212,1762040834264,620.0,0.00014791,2]
[392844213,1762040834302,500.0,0.00014791,2]
[392844214,1762040834915,500.0,0.00014791,2]
[392844215,1762040835520,500.0,0.00014791,2]
[392844216,1762040836140,34.06239618,0.00014791,2]
[392844217,1762040836165,465.93760382,0.00014791,2]
[392844218,1762040836751,500.0,0.00014791,2]
[392844219,1762040838005,500.0,0.00014791,2]
[392844220,1762040838591,500.0,0.00014791,2]
[392844221,1762040839207,587.00145482,0.00014791,2]
[392844222,1762040842260,496.47127164,0.00014791,2]
[392844223,1762040844198,322.6107,0.00014791,2]
[392844229,1762041001167,1200.0,0.00014799,2]
[392844239,1762041032466,-722.67453292,0.000148,2]
[392844241,1762041032481,-9277.33546708,0.000148,2]
[392844243,1762041032490,-586.17786009,0.000148,2]
[392844245,1762041032500,-300.0,0.00014804,2]
[392844247,1762041032509,-250.0,0.00014808,2]
[392844249,1762041032518,-231.17860089,0.00014822,2]
[392844263,1762041038074,-68.82139911,0.00014822,2]
[392844264,1762041038083,-383.14085,0.0001483,2]
[392844265,1762041038093,-1425.0,0.00014833,2]
[392844266,1762041038102,-1425.0,0.00014841,2]
[392844267,1762041038111,-698.03775089,0.00014847,2]
[392844268,1762041038200,-726.96224911,0.00014847,2]
[392844269,1762041038210,-1425.0,0.00014859,2]
[392844270,1762041038220,-200.0,0.0001486,2]
[392844271,1762041038235,-1425.0,0.00014874,2]
[392844272,1762041038245,-1425.0,0.00014876,2]
[392844273,1762041038256,-1000.0,0.00014878,2]
[392844274,1762041038267,-2500.0,0.00014878,2]
[392844275,1762041038277,-198.95642305,0.00014879,2]
[392844276,1762041038287,-150.0,0.00014879,2]
[392844277,1762041038296,-685.40414886,0.0001488,2]
[392844278,1762041038307,-5000.0,0.0001488,2]
[392844279,1762041038317,-4542.77851169,0.0001488,2]
[392844280,1762041038326,-154.44619155,0.0001488,2]
[392844281,1762041038335,-205.7861318,0.0001488,2]
[392844282,1762041038344,-1080.48852878,0.00014882,2]
[392844283,1762041038355,-3462.28998289,0.00014882,2]
[392844284,1762041038364,-1425.0,0.00014884,2]
[392844285,1762041038373,-3828.94305033,0.00014884,2]
[392844286,1762041038385,-713.83546134,0.00014884,2]
[392844287,1762041038394,-4542.77851167,0.00014887,2]
[392844288,1762041038403,-4542.77851167,0.00014889,2]
[392844289,1762041038413,-4542.77851167,0.00014891,2]
[392844290,1762041038422,-4542.77851167,0.00014893,2]
[392844291,1762041038432,-4542.77851167,0.00014896,2]
[392844292,1762041038441,-4542.77851167,0.00014898,2]
[392844293,1762041038451,-4542.77851167,0.000149,2]
[392844296,1762041038460,-1008.0,0.000149,2]
[392844298,1762041038469,-203.95071825,0.000149,2]
[392844299,1762041038478,-1869.89907916,0.000149,2]
[392844300,1762041038487,-200.90864579,0.000149,2]
[392844301,1762041038496,-1425.0,0.00014927,2]
[392844302,1762041038506,-1425.0,0.00014927,2]
[392844303,1762041038516,-300.0,0.00014933,2]
[392844304,1762041038525,-300.0,0.00014933,2]
[392844305,1762041038535,-400.0,0.00014933,2]
[392844306,1762041038544,-685.40414886,0.00014933,2]
[392844307,1762041038553,-1425.0,0.00014947,2]
[392844308,1762041038562,-1425.0,0.00014948,2]
[392844309,1762041038571,-1425.0,0.00014953,2]
[392844310,1762041038581,-1000.0,0.00014956,2]
[392844311,1762041038590,-1425.0,0.00014961,2]
[392844312,1762041038599,-1425.0,0.00014963,2]
[392844313,1762041038609,-383.14085,0.0001497,2]
[392844314,1762041038619,-606.16470264,0.00014973,2]
[392844315,1762041038628,-157.10873126,0.00014973,2]
[392844316,1762041038638,-500.0,0.00014973,2]
[392844317,1762041038648,-500.0,0.00014973,2]
[392844318,1762041038657,-502.20874764,0.00014973,2]
[392844319,1762041038667,-500.0,0.00014973,2]
[392844320,1762041038679,-348.9,0.00014973,2]
[392844321,1762041038688,-1798.202,0.00014973,2]
[392844322,1762041038698,-500.0,0.00014976,2]
[392844323,1762041038707,-500.0,0.00014976,2]
[392844324,1762041038716,-500.0,0.00014976,2]
[392844325,1762041038725,-518.61435154,0.00014976,2]
[392844326,1762041038735,-500.0,0.00014976,2]
[392844327,1762041038744,-500.0,0.00014976,2]
[392844328,1762041038753,-500.0,0.00014976,2]
[392844329,1762041038763,-500.0,0.00014976,2]
[392844330,1762041038772,-500.0,0.00014976,2]
[392844331,1762041038781,-500.0,0.00014976,2]
[392844332,1762041038790,-500.0,0.00014976,2]
[392844333,1762041038799,-500.0,0.00014976,2]
[392844334,1762041038809,-500.0,0.00014976,2]
[392844335,1762041038818,-500.0,0.00014976,2]
[392844336,1762041038827,-500.0,0.00014976,2]
[392844337,1762041038836,-500.0,0.00014976,2]
[392844338,1762041038845,-600.0,0.00014976,2]
[392844339,1762041038854,-500.0,0.00014976,2]
[392844340,1762041038863,-500.0,0.00014977,2]
[392844341,1762041038872,-500.0,0.00014977,2]
[392844342,1762041038882,-174.95130455,0.00014977,2]
[392844343,1762041038891,-522.47474513,0.00014977,2]
[392844344,1762041038900,-810.3844182,0.00014978,2]
[392844345,1762041038909,-55464.94860012,0.00014978,2]
[392844347,1762041040188,-997.83640283,0.0001488,2]
[392844348,1762041040199,-4002.16359717,0.0001488,2]
[392844349,1762041040209,-31950.49573178,0.00014978,2]
[392844350,1762041040218,-4332.9914439,0.00014978,2]
[392844351,1762041040232,-151.923589,0.00014978,2]
[392844352,1762041040245,-152.591698,0.00014978,2]
[392844353,1762041040255,-34597.79739347,0.00014978,2]
[392844354,1762041040311,-18982.46599763,0.00014978,2]
[392844355,1762041040321,-151.0,0.00014978,2]
[392844356,1762041040330,-169.548927,0.00014978,2]
[392844357,1762041040340,-156.143014,0.00014978,2]
[392844358,1762041040349,-151.0,0.00014978,2]
[392844359,1762041040358,-1287.76,0.00014978,2]
[392844360,1762041040367,-153.023094,0.00014978,2]
[392844361,1762041040377,-151.0,0.00014978,2]
[392844362,1762041040386,-151.0,0.00014978,2]
[392844363,1762041040395,-151.0,0.00014978,2]
[392844364,1762041040404,-151.0,0.00014978,2]
[392844365,1762041040413,-262.19798093,0.00014978,2]
[392844366,1762041040422,-151.0,0.00014978,2]
[392844367,1762041040431,-275.556412,0.00014978,2]
[392844368,1762041040440,-151.0,0.00014978,2]
[392844369,1762041040449,-151.0,0.00014978,2]
[392844370,1762041040458,-151.0,0.00014978,2]
[392844371,1762041040467,-151.0,0.00014978,2]
[392844372,1762041040477,-151.0,0.00014978,2]
[392844373,1762041040486,-151.552995,0.00014978,2]
[392844374,1762041040495,-151.0,0.00014978,2]
[392844375,1762041040504,-151.0,0.00014978,2]
[392844376,1762041040514,-169.024098,0.00014978,2]
[392844377,1762041040523,-151.0,0.00014978,2]
[392844378,1762041040532,-151.0,0.00014978,2]
[392844379,1762041040541,-158.519396,0.00014978,2]
[392844380,1762041040550,-151.0,0.00014978,2]
[392844381,1762041040559,-151.0,0.00014978,2]
[392844382,1762041040568,-154.518086,0.00014978,2]
[392844383,1762041040577,-151.0,0.00014978,2]
[392844384,1762041040586,-151.0,0.00014978,2]
[392844385,1762041040595,-151.0,0.00014978,2]
[392844386,1762041040604,-151.0,0.00014978,2]
[392844387,1762041040613,-151.0,0.00014978,2]
[392844388,1762041040622,-281.942167,0.00014978,2]
[392844389,1762041040631,-151.0,0.00014978,2]
[392844390,1762041040640,-151.0,0.00014978,2]
[392844391,1762041040649,-151.0,0.00014978,2]
[392844392,1762041040658,-151.0,0.00014978,2]
[392844393,1762041040667,-151.0,0.00014978,2]
[392844394,1762041040676,-151.0,0.00014978,2]
[392844395,1762041040685,-151.0,0.00014978,2]
[392844396,1762041040695,-231.829585,0.00014978,2]
[392844397,1762041040706,-151.0,0.00014978,2]
[392844399,1762041040715,-151.0,0.00014978,2]
[392844401,1762041040724,-151.0,0.00014978,2]
[392844403,1762041040733,-151.0,0.00014978,2]
[392844405,1762041040743,-151.0,0.00014978,2]
[392844407,1762041040751,-151.0,0.00014978,2]
[392844409,1762041040761,-151.0,0.00014978,2]
[392844411,1762041040770,-151.0,0.00014978,2]
[392844413,1762041040779,-151.0,0.00014978,2]
[392844415,1762041040788,-151.0,0.00014978,2]
[392844417,1762041040797,-151.0,0.00014978,2]
[392844419,1762041040806,-151.0,0.00014978,2]
[392844421,1762041040815,-151.0,0.00014978,2]
[392844423,1762041040824,-151.0,0.00014978,2]
[392844425,1762041040833,-151.0,0.00014978,2]
[392844427,1762041040842,-151.0,0.00014978,2]
[392844429,1762041040851,-151.0,0.00014978,2]
[392844430,1762041040859,-151.0,0.00014978,2]
[392844432,1762041040868,-151.0,0.00014978,2]
[392844434,1762041040878,-151.0,0.00014978,2]